{"text_format":"1","workbook":"xlsx","n_sheets":5,"sheets":["記入例","入力シート","【請求書】（一般取引用）","【請求内訳書】","【請求総括表】"],"not_rendered":{"charts":0,"images":3,"macros":1,"external_links":0,"defined_names":6,"comments":0,"pivot_tables":0},"unopened":[],"bounds":{"document_bytes":16777216,"sheet_cells":100000,"rows_first":2000,"rows_last":500,"rows_between":2000,"halvings":0,"cell_chars":16384,"cell_head_chars":4096},"cells_cut":0,"cells_raw":0,"read":"whole","date_system":"1900"}

{"sheet":"記入例","index":0,"n_rows":15,"n_cols":1,"rows_kept":15,"cut":false,"hidden":false,"merged":[]}
["【請求書作成手順】"]
[]
["①　入力シートの黄色いセルへ請求に必要な情報を入力してください。"]
["　※入力するとセルの着色は消えます"]
[]
["②　入力シートに記入し、請求内容を入力後「請求書発行」ボタン、内訳がある場合は「請求内訳書発行」ボタン"]
["をクリックしてください。"]
["※複数現場がある場合は【請求総括表】にも入力し、印刷・提出をお願いします。"]
[]
["③　印刷プレビューが表示されたら記載内容を確認し、問題がなければ請求書及び請求内訳書を印刷してください。"]
[]
["④　請求書・請求内訳書を発行したら、請求書の㊞箇所へ押印のうえ弊社まで提出をお願いします。"]
["　※請求書は「提出用」のみ1部ご提出ください。"]
[]
["【入力シート記入例】"]

{"sheet":"入力シート","index":1,"n_rows":34,"n_cols":56,"rows_kept":34,"cut":false,"hidden":false,"merged":[[1,1,2,13],[3,3,4,13],[3,14,4,15],[3,16,4,17],[3,18,4,19],[3,22,4,23],[3,24,4,25],[3,26,4,27],[3,28,4,29],[5,3,6,13],[5,14,6,42],[3,20,4,21],[7,3,8,13],[7,14,8,42],[9,3,9,13],[9,14,9,29],[10,3,10,13],[10,14,10,29],[19,3,20,13],[19,14,20,39],[23,1,24,13],[11,3,12,13],[11,14,12,29],[15,1,16,43],[17,3,18,13],[17,14,18,19],[17,20,18,28],[17,29,18,39],[25,36,26,49],[29,52,30,53],[29,13,30,49],[33,1,34,9],[33,10,34,13],[33,14,34,24],[27,46,28,47],[27,48,28,49],[27,52,28,53],[29,3,30,12],[27,36,28,37],[27,38,28,39],[27,40,28,41],[27,42,28,43],[27,44,28,45],[25,3,26,12],[25,13,26,26],[25,27,26,35],[27,3,28,12],[27,13,28,26],[27,27,28,35]]}
[]
[null,"【基本項目】",null,null,null,null,null,null,null,null,null,null,null,null,null,null,null,null,null,null,null,null,null,null,null,null,null,null,null,null,null,null,null,null,null,null,null,null,null,null,null,null,null,null,null,null,null,null,null,null,null,null,null,null,"単位","←リストにない単位は"]
[null,null,null,null,null,null,null,null,null,null,null,null,null,null,null,null,null,null,null,null,null,null,null,null,null,null,null,null,null,null,null,null,null,null,null,null,null,null,null,null,null,null,null,null,null,null,null,null,null,null,null,null,null,null,null,"直接入力いただけます。"]
[null,null,null,"〒",null,null,null,null,null,null,null,null,null,null,null,null,null,null,null,null,"－",null,null,null,null,null,null,null,null,null,null,null,null,null,null,null,null,null,null,null,null,null,null,null,null,null,null,null,null,null,null,null,null,null,"式","リストとして空欄に追加も"]
[null,null,null,null,null,null,null,null,null,null,null,null,null,null,null,null,null,null,null,null,null,null,null,null,null,null,null,null,null,null,null,null,null,null,null,null,null,null,null,null,null,null,null,null,null,null,null,null,null,null,null,null,null,null,"箇所","可能です。"]
[null,null,null,"住所",null,null,null,null,null,null,null,null,null,null,null,null,null,null,null,null,null,null,null,null,null,null,null,null,null,null,null,null,null,null,null,null,null,null,null,null,null,null,null,null,null,null,null,null,null,null,null,null,null,null,"袋"]
[null,null,null,null,null,null,null,null,null,null,null,null,null,null,null,null,null,null,null,null,null,null,null,null,null,null,null,null,null,null,null,null,null,null,null,null,null,null,null,null,null,null,null,null,null,null,null,null,null,null,null,null,null,null,"回"]
[null,null,null,"会社名",null,null,null,null,null,null,null,null,null,null,null,null,null,null,null,null,null,null,null,null,null,null,null,null,null,null,null,null,null,null,null,null,null,null,null,null,null,null,null,null,null,null,null,null,null,null,null,null,null,null,"巻"]
[null,null,null,null,null,null,null,null,null,null,null,null,null,null,null,null,null,null,null,null,null,null,null,null,null,null,null,null,null,null,null,null,null,null,null,null,null,null,null,null,null,null,null,null,null,null,null,null,null,null,null,null,null,null,"mm"]
[null,null,null,"TEL",null,null,null,null,null,null,null,null,null,null,null,null,null,null,null,null,null,null,null,null,null,null,null,null,null,null,null,null,null,null,null,null,null,null,null,null,null,null,null,null,null,null,null,null,null,null,null,null,null,null,"cm"]
[null,null,null,"FAX",null,null,null,null,null,null,null,null,null,null,null,null,null,null,null,null,null,null,null,null,null,null,null,null,null,null,null,null,null,null,null,null,null,null,null,null,null,null,null,null,null,null,null,null,null,null,null,null,null,null,"ｍ"]
[null,null,null,"適格請求書発行\n事業者登録番号",null,null,null,null,null,null,null,null,null,null,null,null,null,null,null,null,null,null,null,null,null,null,null,null,null,null,null,null,null,null,null,null,null,null,null,null,null,null,null,null,null,null,null,null,null,null,null,null,null,null,"km"]
[null,null,null,null,null,null,null,null,null,null,null,null,null,null,null,null,null,null,null,null,null,null,null,null,null,null,null,null,null,null,null,null,null,null,null,null,null,null,null,null,null,null,null,null,null,null,null,null,null,null,null,null,null,null,"m2"]
[null,null,null,null,null,null,null,null,null,null,null,null,null,null,null,null,null,null,null,null,null,null,null,null,null,null,null,null,null,null,null,null,null,null,null,null,null,null,null,null,null,null,null,null,null,null,null,null,null,null,null,null,null,null,"m3"]
[null,null,null,null,null,null,null,null,null,null,null,null,null,null,null,null,null,null,null,null,null,null,null,null,null,null,null,null,null,null,null,null,null,null,null,null,null,null,null,null,null,null,null,null,null,null,null,null,null,null,null,null,null,null,"L"]
[null,"【請求対象現場】",null,null,null,null,null,null,null,null,null,null,null,null,null,null,null,null,null,null,null,null,null,null,null,null,null,null,null,null,null,null,null,null,null,null,null,null,null,null,null,null,null,null,null,null,null,null,null,null,null,null,null,null,"g"]
[null,null,null,null,null,null,null,null,null,null,null,null,null,null,null,null,null,null,null,null,null,null,null,null,null,null,null,null,null,null,null,null,null,null,null,null,null,null,null,null,null,null,null,null,null,null,null,null,null,null,null,null,null,null,"kg"]
[null,null,null,"工事番号",null,null,null,null,null,null,null,null,null,null,null,null,null,null,null,null,"弊社担当者",null,null,null,null,null,null,null,null,null,null,null,null,null,null,null,null,null,null,null,null,null,null,null,null,null,null,null,null,null,null,null,null,null,"t"]
[null,null,null,null,null,null,null,null,null,null,null,null,null,null,null,null,null,null,null,null,null,null,null,null,null,null,null,null,null,null,null,null,null,null,null,null,null,null,null,null,null,null,null,null,null,null,null,null,null,null,null,null,null,null,"時間"]
[null,null,null,"現場名",null,null,null,null,null,null,null,null,null,null,null,null,null,null,null,null,null,null,null,null,null,null,null,null,null,null,null,null,null,null,null,null,null,null,null,null,null,null,null,null,null,null,null,null,null,null,null,null,null,null,"日"]
[null,null,null,null,null,null,null,null,null,null,null,null,null,null,null,null,null,null,null,null,null,null,null,null,null,null,null,null,null,null,null,null,null,null,null,null,null,null,null,null,null,null,null,null,null,null,null,null,null,null,null,null,null,null,"月"]
[null,null,null,null,null,null,null,null,null,null,null,null,null,null,null,null,null,null,null,null,null,null,null,null,null,null,null,null,null,null,null,null,null,null,null,null,null,null,null,null,null,null,null,null,null,null,null,null,null,null,null,null,null,null,"本"]
[null,null,null,null,null,null,null,null,null,null,null,null,null,null,null,null,null,null,null,null,null,null,null,null,null,null,null,null,null,null,null,null,null,null,null,null,null,null,null,null,null,null,null,null,null,null,null,null,null,null,null,null,null,null,"台"]
[null,"【振込先情報】",null,null,null,null,null,null,null,null,null,null,null,null,null,null,null,null,null,null,null,null,null,null,null,null,null,null,null,null,null,null,null,null,null,null,null,null,null,null,null,null,null,null,null,null,null,null,null,null,null,null,null,null,"人"]
[null,null,null,null,null,null,null,null,null,null,null,null,null,null,null,null,null,null,null,null,null,null,null,null,null,null,null,null,null,null,null,null,null,null,null,null,null,null,null,null,null,null,null,null,null,null,null,null,null,null,null,null,null,null,"個"]
[null,null,null,"銀行名",null,null,null,null,null,null,null,null,null,null,null,null,null,null,null,null,null,null,null,null,null,null,null,"支店名",null,null,null,null,null,null,null,null,null,null,null,null,null,null,null,null,null,null,null,null,null,null,null,null,null,null,"枚"]
[null,null,null,null,null,null,null,null,null,null,null,null,null,null,null,null,null,null,null,null,null,null,null,null,null,null,null,null,null,null,null,null,null,null,null,null,null,null,null,null,null,null,null,null,null,null,null,null,null,null,null,null,null,null,"組"]
[null,null,null,"預金種別",null,null,null,null,null,null,null,null,null,null,null,null,null,null,null,null,null,null,null,null,null,null,null,"口座番号",null,null,null,null,null,null,null,null,null,null,null,null,null,null,null,null,null,null,null,null,null,null,null,null,null,null,"個所"]
[null,null,null,null,null,null,null,null,null,null,null,null,null,null,null,null,null,null,null,null,null,null,null,null,null,null,null,null,null,null,null,null,null,null,null,null,null,null,null,null,null,null,null,null,null,null,null,null,null,null,null,null,null,null,"基"]
[null,null,null,"口座名義\n（カタカナ）",null,null,null,null,null,null,null,null,null,null,null,null,null,null,null,null,null,null,null,null,null,null,null,null,null,null,null,null,null,null,null,null,null,null,null,null,null,null,null,null,null,null,null,null,null,null,null,null,null,null,"束"]
[null,null,null,null,null,null,null,null,null,null,null,null,null,null,null,null,null,null,null,null,null,null,null,null,null,null,null,null,null,null,null,null,null,null,null,null,null,null,null,null,null,null,null,null,null,null,null,null,null,null,null,null,null,null,"缶"]
[null,null,null,null,null,null,null,null,null,null,null,null,null,null,null,null,null,null,null,null,null,null,null,null,null,null,null,null,null,null,null,null,null,null,null,null,null,null,null,null,null,null,null,null,null,null,null,null,null,null,null,null,null,null,"人日"]
[]
[null,"右肩日付",null,null,null,null,null,null,null,null,"西暦"]

{"sheet":"【請求書】（一般取引用）","index":2,"n_rows":185,"n_cols":70,"rows_kept":185,"cut":false,"hidden":false,"merged":[[181,4,183,71],[184,4,186,71],[44,2,46,4],[44,5,46,7],[47,2,49,4],[47,5,49,7],[50,2,52,4],[50,5,52,7],[53,2,55,4],[53,5,55,7],[53,50,55,57],[53,58,55,69],[56,46,58,57],[50,41,52,45],[53,41,55,45],[44,41,46,45],[47,41,49,45],[56,58,58,69],[44,28,46,40],[47,28,49,40],[50,28,52,40],[53,28,55,40],[44,8,46,27],[50,8,52,27],[35,2,37,4],[35,5,37,7],[38,5,40,7],[38,2,40,4],[41,2,43,4],[41,5,43,7],[35,28,37,40],[35,8,37,27],[38,8,40,27],[41,8,43,27],[38,28,40,40],[41,28,43,40],[53,8,55,27],[59,58,61,69],[62,58,64,69],[61,30,63,31],[64,6,66,13],[64,14,66,43],[61,42,63,43],[61,32,63,33],[61,34,63,35],[61,36,63,37],[61,38,63,39],[61,40,63,41],[59,46,61,57],[62,46,64,57],[61,6,63,13],[61,14,63,21],[58,6,60,13],[58,25,60,32],[58,14,60,24],[58,33,60,43],[50,50,52,57],[50,58,52,69],[61,22,63,29],[35,41,37,45],[38,41,40,45],[41,41,43,45],[58,2,66,5],[35,58,37,69],[35,50,37,57],[35,46,37,49],[38,46,40,49],[41,46,43,49],[44,46,46,49],[47,46,49,49],[50,46,52,49],[53,46,55,49],[38,50,40,57],[38,58,40,69],[41,50,43,57],[41,58,43,69],[44,50,46,57],[44,58,46,69],[47,50,49,57],[47,58,49,69],[47,8,49,27],[2,66,3,68],[2,69,3,70],[4,34,6,36],[6,41,8,49],[6,50,8,52],[6,53,8,55],[6,56,8,58],[1,11,3,48],[2,51,3,54],[2,55,3,58],[2,59,3,60],[2,61,3,63],[2,64,3,65],[13,46,15,69],[16,2,18,8],[16,9,18,15],[16,16,18,22],[16,23,18,35],[16,41,18,44],[16,46,18,65],[16,67,18,69],[10,52,12,53],[10,54,12,55],[10,56,12,57],[10,58,12,59],[10,60,12,61],[12,6,13,22],[12,23,13,25],[12,26,13,28],[12,29,13,31],[13,41,15,44],[8,2,10,27],[8,28,10,31],[10,41,12,44],[10,46,12,47],[10,48,12,49],[10,50,12,51],[29,7,32,11],[29,12,32,16],[29,17,32,35],[19,41,21,44],[19,46,21,69],[21,2,32,6],[21,7,24,35],[22,41,24,44],[22,46,24,69],[25,7,28,16],[25,17,28,35],[25,41,27,44],[25,46,27,69],[73,44,79,50],[73,51,74,57],[73,58,79,64],[73,65,79,71],[75,51,79,57],[69,2,71,16],[69,30,72,36],[69,37,72,43],[69,44,70,57],[69,58,70,71],[71,44,72,50],[71,51,72,57],[71,58,72,64],[71,65,72,71],[96,69,97,70],[98,34,100,36],[100,41,102,49],[100,50,102,52],[100,53,102,55],[100,56,102,58],[81,2,83,14],[84,4,86,71],[87,4,89,71],[95,11,97,48],[96,51,97,54],[96,55,97,58],[96,59,97,60],[96,61,97,63],[96,64,97,65],[96,66,97,68],[90,4,92,71],[107,46,109,69],[110,2,112,8],[110,9,112,15],[110,16,112,22],[110,23,112,35],[110,41,112,44],[110,46,112,65],[110,67,112,69],[104,52,106,53],[104,54,106,55],[104,56,106,57],[104,58,106,59],[104,60,106,61],[106,6,107,22],[106,23,107,25],[106,26,107,28],[106,29,107,31],[107,41,109,44],[102,2,104,27],[102,28,104,31],[104,41,106,44],[104,46,106,47],[104,48,106,49],[104,50,106,51],[155,6,157,13],[155,14,157,21],[155,22,157,29],[113,41,115,44],[113,46,115,69],[115,2,126,6],[115,7,118,35],[116,41,118,44],[116,46,118,69],[119,7,122,16],[119,17,122,35],[119,41,121,44],[119,46,121,69],[129,2,131,4],[129,5,131,7],[129,8,131,27],[129,28,131,40],[129,41,131,45],[129,46,131,49],[129,50,131,57],[129,58,131,69],[132,2,134,4],[132,5,134,7],[132,8,134,27],[163,2,165,16],[163,30,166,36],[163,37,166,43],[163,44,164,57],[163,58,164,71],[165,44,166,50],[165,51,166,57],[165,58,166,64],[165,65,166,71],[175,2,177,14],[178,4,180,71],[167,30,173,36],[167,37,173,43],[167,44,173,50],[167,51,168,57],[167,58,173,64],[167,65,173,71],[169,51,173,57],[132,28,134,40],[132,41,134,45],[132,46,134,49],[132,50,134,57],[132,58,134,69],[135,2,137,4],[135,5,137,7],[135,8,137,27],[135,28,137,40],[135,41,137,45],[135,46,137,49],[135,50,137,57],[135,58,137,69],[138,2,140,4],[138,5,140,7],[138,8,140,27],[138,28,140,40],[138,41,140,45],[138,46,140,49],[138,50,140,57],[138,58,140,69],[141,2,143,4],[141,5,143,7],[141,8,143,27],[141,28,143,40],[141,41,143,45],[141,46,143,49],[141,50,143,57],[141,58,143,69],[152,33,154,43],[144,2,146,4],[144,5,146,7],[144,8,146,27],[144,28,146,40],[144,41,146,45],[144,46,146,49],[144,50,146,57],[144,58,146,69],[147,2,149,4],[147,5,149,7],[147,8,149,27],[147,28,149,40],[147,41,149,45],[147,46,149,49],[147,50,149,57],[147,58,149,69],[123,7,126,11],[123,12,126,16],[123,17,126,35],[73,30,79,36],[73,37,79,43],[150,46,152,57],[150,58,152,69],[152,2,160,5],[153,46,155,57],[153,58,155,69],[155,30,157,31],[155,32,157,33],[155,34,157,35],[155,36,157,37],[155,38,157,39],[155,40,157,41],[155,42,157,43],[156,46,158,57],[156,58,158,69],[158,6,160,13],[158,14,160,43],[152,6,154,13],[152,14,154,24],[152,25,154,32]]}
[]
[null,null,null,null,null,null,null,null,null,null,null,"請求書（一般取引用）"]
[null,null,null,null,null,null,null,null,null,null,null,null,null,null,null,null,null,null,null,null,null,null,null,null,null,null,null,null,null,null,null,null,null,null,null,null,null,null,null,null,null,null,null,null,null,null,null,null,null,null,null,"西暦",null,null,null,{"$f":"+YEAR(入力シート!O34)","v":1900},null,null,null,"年",null,{"$f":"+MONTH(入力シート!O34)","v":1},null,null,"月",null,{"$f":"+DAY(入力シート!O34)","v":0},null,null,"日"]
[]
[]
[]
[null,null,null,null,null,null,null,null,null,null,null,null,null,null,null,null,null,null,null,null,null,null,null,null,null,null,null,null,null,null,null,null,null,null,null,null,null,null,null,null,null,"取引先コード"]
[]
[null,null,"株式会社　湘南推進工業",null,null,null,null,null,null,null,null,null,null,null,null,null,null,null,null,null,null,null,null,null,null,null,null,null,"御中"]
[]
[null,null,null,null,null,null,null,null,null,null,null,null,null,null,null,null,null,null,null,null,null,null,null,null,null,null,null,null,null,null,null,null,null,null,null,null,null,null,null,null,null,"〒",null,null,null,null,{"$f":"+IF(入力シート!O4=\"\",\"\",+入力シート!O4)","v":""},null,{"$f":"+IF(入力シート!Q4=\"\",\"\",+入力シート!Q4)","v":""},null,{"$f":"+IF(入力シート!S4=\"\",\"\",+入力シート!S4)","v":""},null,"－",null,{"$f":"+IF(入力シート!W4=\"\",\"\",+入力シート!W4)","v":""},null,{"$f":"+IF(入力シート!Y4=\"\",\"\",+入力シート!Y4)","v":""},null,{"$f":"+IF(入力シート!AA4=\"\",\"\",+入力シート!AA4)","v":""},null,{"$f":"+IF(入力シート!AC4=\"\",\"\",+入力シート!AC4)","v":""}]
[]
[null,null,null,null,null,null,"下記の通り請求致します"]
[null,null,null,null,null,null,null,null,null,null,null,null,null,null,null,null,null,null,null,null,null,null,null,null,null,null,null,null,null,null,null,null,null,null,null,null,null,null,null,null,null,"住所",null,null,null,null,{"$f":"+IF(入力シート!O6=\"\",\"\",+入力シート!O6)","v":""}]
[]
[]
[null,null,"工事番号",null,null,null,null,null,null,{"$f":"+IF(入力シート!O18=\"\",\"\",+入力シート!O18)","v":""},null,null,null,null,null,null,"現場名",null,null,null,null,null,null,{"$f":"+IF(入力シート!O20=\"\",\"\",+入力シート!O20)","v":""},null,null,null,null,null,null,null,null,null,null,null,null,null,null,null,null,null,"会社名",null,null,null,null,{"$f":"+IF(入力シート!O8=\"\",\"\",+入力シート!O8)","v":""},null,null,null,null,null,null,null,null,null,null,null,null,null,null,null,null,null,null,null,null,"㊞"]
[]
[]
[null,null,null,null,null,null,null,null,null,null,null,null,null,null,null,null,null,null,null,null,null,null,null,null,null,null,null,null,null,null,null,null,null,null,null,null,null,null,null,null,null,"電話",null,null,null,null,{"$f":"+IF(入力シート!O10=\"\",\"\",+入力シート!O10)","v":""}]
[]
[null,null,"今回請求金額",null,null,null,null,{"$f":"+IF(R26+R30=0,\"\",R26+R30)","v":""}]
[null,null,null,null,null,null,null,null,null,null,null,null,null,null,null,null,null,null,null,null,null,null,null,null,null,null,null,null,null,null,null,null,null,null,null,null,null,null,null,null,null,"FAX",null,null,null,null,{"$f":"+IF(入力シート!O11=\"\",\"\",+入力シート!O11)","v":""}]
[]
[]
[null,null,null,null,null,null,null,"本体価格（税抜）",null,null,null,null,null,null,null,null,null,{"$f":"BG57+【請求内訳書】!BG44+【請求内訳書】!BG93","v":0},null,null,null,null,null,null,null,null,null,null,null,null,null,null,null,null,null,null,null,null,null,null,null,"登録\n番号",null,null,null,null,{"$f":"+IF(入力シート!O12=\"\",\"\",+入力シート!O12)","v":""}]
[]
[]
[]
[null,null,null,null,null,null,null,"消費税",null,null,null,null,0.1,null,null,null,null,{"$f":"BG60+【請求内訳書】!BG46+【請求内訳書】!BG95","v":0}]
[]
[]
[]
[]
[]
[null,null,"月",null,null,"日",null,null,"名称",null,null,null,null,null,null,null,null,null,null,null,null,null,null,null,null,null,null,null,"摘要",null,null,null,null,null,null,null,null,null,null,null,null,"数量",null,null,null,null,"単位",null,null,null,"単価",null,null,null,null,null,null,null,"金額"]
[]
[]
[null,null,null,null,null,null,null,null,null,null,null,null,null,null,null,null,null,null,null,null,null,null,null,null,null,null,null,null,null,null,null,null,null,null,null,null,null,null,null,null,null,null,null,null,null,null,null,null,null,null,null,null,null,null,null,null,null,null,{"$f":"IF(AP39*AY39,AP39*AY39,\"\")","v":""}]
[]
[]
[null,null,null,null,null,null,null,null,null,null,null,null,null,null,null,null,null,null,null,null,null,null,null,null,null,null,null,null,null,null,null,null,null,null,null,null,null,null,null,null,null,null,null,null,null,null,null,null,null,null,null,null,null,null,null,null,null,null,{"$f":"IF(AP42*AY42,AP42*AY42,\"\")","v":""}]
[]
[]
[null,null,null,null,null,null,null,null,null,null,null,null,null,null,null,null,null,null,null,null,null,null,null,null,null,null,null,null,null,null,null,null,null,null,null,null,null,null,null,null,null,null,null,null,null,null,null,null,null,null,null,null,null,null,null,null,null,null,{"$f":"IF(AP45*AY45,AP45*AY45,\"\")","v":""}]
[]
[]
[null,null,null,null,null,null,null,null,null,null,null,null,null,null,null,null,null,null,null,null,null,null,null,null,null,null,null,null,null,null,null,null,null,null,null,null,null,null,null,null,null,null,null,null,null,null,null,null,null,null,null,null,null,null,null,null,null,null,{"$f":"IF(AP48*AY48,AP48*AY48,\"\")","v":""}]
[]
[]
[null,null,null,null,null,null,null,null,null,null,null,null,null,null,null,null,null,null,null,null,null,null,null,null,null,null,null,null,null,null,null,null,null,null,null,null,null,null,null,null,null,null,null,null,null,null,null,null,null,null,null,null,null,null,null,null,null,null,{"$f":"IF(AP51*AY51,AP51*AY51,\"\")","v":""}]
[]
[]
[null,null,null,null,null,null,null,null,null,null,null,null,null,null,null,null,null,null,null,null,null,null,null,null,null,null,null,null,null,null,null,null,null,null,null,null,null,null,null,null,null,null,null,null,null,null,null,null,null,null,null,null,null,null,null,null,null,null,{"$f":"IF(AP54*AY54,AP54*AY54,\"\")","v":""}]
[]
[]
[null,null,null,null,null,null,null,null,null,null,null,null,null,null,null,null,null,null,null,null,null,null,null,null,null,null,null,null,null,null,null,null,null,null,null,null,null,null,null,null,null,null,null,null,null,null,"小計",null,null,null,null,null,null,null,null,null,null,null,{"$f":"SUM(BG39:BR56)","v":0}]
[]
[null,null,"振込先情報",null,null,null,"銀行名",null,null,null,null,null,null,null,{"$f":"IF(入力シート!N26=\"\",\"\",入力シート!N26)","v":""},null,null,null,null,null,null,null,null,null,null,"支店名",null,null,null,null,null,null,null,{"$f":"IF(入力シート!AK26=\"\",\"\",入力シート!AK26)","v":""}]
[null,null,null,null,null,null,null,null,null,null,null,null,null,null,null,null,null,null,null,null,null,null,null,null,null,null,null,null,null,null,null,null,null,null,null,null,null,null,null,null,null,null,null,null,null,null,"消費税",null,null,null,null,null,null,null,null,null,null,null,{"$f":"BG57/10","v":0}]
[]
[null,null,null,null,null,null,"預金種別",null,null,null,null,null,null,null,{"$f":"IF(入力シート!N28=\"\",\"\",入力シート!N28)","v":""},null,null,null,null,null,null,null,"口座番号",null,null,null,null,null,null,null,{"$f":"IF(入力シート!AK28=\"\",\"\",入力シート!AK28)","v":""},null,{"$f":"IF(入力シート!AM28=\"\",\"\",入力シート!AM28)","v":""},null,{"$f":"IF(入力シート!AO28=\"\",\"\",入力シート!AO28)","v":""},null,{"$f":"IF(入力シート!AQ28=\"\",\"\",入力シート!AQ28)","v":""},null,{"$f":"IF(入力シート!AS28=\"\",\"\",入力シート!AS28)","v":""},null,{"$f":"IF(入力シート!AU28=\"\",\"\",入力シート!AU28)","v":""},null,{"$f":"IF(入力シート!AW28=\"\",\"\",入力シート!AW28)","v":""}]
[null,null,null,null,null,null,null,null,null,null,null,null,null,null,null,null,null,null,null,null,null,null,null,null,null,null,null,null,null,null,null,null,null,null,null,null,null,null,null,null,null,null,null,null,null,null,"合計",null,null,null,null,null,null,null,null,null,null,null,{"$f":"SUM(BG57:BR62)","v":0}]
[]
[null,null,null,null,null,null,"口座名義\n（カタカナ）",null,null,null,null,null,null,null,{"$f":"IF(入力シート!N30=\"\",\"\",入力シート!N30)","v":""}]
[]
[]
[]
[]
[null,null,"湘南推進工業使用欄",null,null,null,null,null,null,null,null,null,null,null,null,null,null,null,null,null,null,null,null,null,null,null,null,null,null,null,"社長",null,null,null,null,null,null,"役員",null,null,null,null,null,null,"工事部",null,null,null,null,null,null,null,null,null,null,null,null,null,"総務部"]
[]
[null,null,null,null,null,null,null,null,null,null,null,null,null,null,null,null,null,null,null,null,null,null,null,null,null,null,null,null,null,null,null,null,null,null,null,null,null,null,null,null,null,null,null,null,"部長",null,null,null,null,null,null,"担当者",null,null,null,null,null,null,"部長",null,null,null,null,null,null,"経理"]
[]
[null,null,null,null,null,null,null,null,null,null,null,null,null,null,null,null,null,null,null,null,null,null,null,null,null,null,null,null,null,null,null,null,null,null,null,null,null,null,null,null,null,null,null,null,null,null,null,null,null,null,null,{"$f":"+IF(入力シート!AD18=\"\",\"\",+入力シート!AD18)","v":""}]
[]
[]
[]
[]
[]
[]
[]
[null,null,"《記入上のお願い》"]
[]
[]
[null,null,null,null,"☆　請求書は、毎月末日〆、翌月10日必着です。必ず押印の上、1部提出でお願いいたします。"]
[]
[]
[null,null,null,null,"☆　請求書は、必ず一現場につき一枚で提出してください（複数現場の場合）。"]
[]
[]
[null,null,null,null,"☆　請求が複数現場ある場合は、各現場の請求書とともに、必ず総括内訳書もご提出ください。"]
[]
[]
[]
[]
[null,null,null,null,null,null,null,null,null,null,null,"請求書（一般取引用）"]
[null,null,null,null,null,null,null,null,null,null,null,null,null,null,null,null,null,null,null,null,null,null,null,null,null,null,null,null,null,null,null,null,null,null,null,null,null,null,null,null,null,null,null,null,null,null,null,null,null,null,null,"西暦",null,null,null,{"$f":"BD3","v":1900},null,null,null,"年",null,{"$f":"BJ3","v":1},null,null,"月",null,{"$f":"BO3","v":0},null,null,"日"]
[]
[]
[]
[null,null,null,null,null,null,null,null,null,null,null,null,null,null,null,null,null,null,null,null,null,null,null,null,null,null,null,null,null,null,null,null,null,null,null,null,null,null,null,null,null,"取引先コード"]
[]
[null,null,"株式会社　湘南推進工業",null,null,null,null,null,null,null,null,null,null,null,null,null,null,null,null,null,null,null,null,null,null,null,null,null,"御中"]
[]
[null,null,null,null,null,null,null,null,null,null,null,null,null,null,null,null,null,null,null,null,null,null,null,null,null,null,null,null,null,null,null,null,null,null,null,null,null,null,null,null,null,"〒",null,null,null,null,{"$f":"AU11","v":""},null,{"$f":"AW11","v":""},null,{"$f":"AY11","v":""},null,"－",null,{"$f":"BC11","v":""},null,{"$f":"BE11","v":""},null,{"$f":"BG11","v":""},null,{"$f":"BI11","v":""}]
[]
[null,null,null,null,null,null,"下記の通り請求致します"]
[null,null,null,null,null,null,null,null,null,null,null,null,null,null,null,null,null,null,null,null,null,null,null,null,null,null,null,null,null,null,null,null,null,null,null,null,null,null,null,null,null,"住所",null,null,null,null,{"$f":"AU14","v":""}]
[]
[]
[null,null,"工事番号",null,null,null,null,null,null,{"$f":"J17","v":""},null,null,null,null,null,null,"現場名",null,null,null,null,null,null,{"$f":"X17","v":""},null,null,null,null,null,null,null,null,null,null,null,null,null,null,null,null,null,"会社名",null,null,null,null,{"$f":"AU17","v":""},null,null,null,null,null,null,null,null,null,null,null,null,null,null,null,null,null,null,null,null,"㊞"]
[]
[]
[null,null,null,null,null,null,null,null,null,null,null,null,null,null,null,null,null,null,null,null,null,null,null,null,null,null,null,null,null,null,null,null,null,null,null,null,null,null,null,null,null,"電話",null,null,null,null,{"$f":"AU20","v":""}]
[]
[null,null,"今回請求金額",null,null,null,null,{"$f":"H22","v":""}]
[null,null,null,null,null,null,null,null,null,null,null,null,null,null,null,null,null,null,null,null,null,null,null,null,null,null,null,null,null,null,null,null,null,null,null,null,null,null,null,null,null,"FAX",null,null,null,null,{"$f":"AU23","v":""}]
[]
[]
[null,null,null,null,null,null,null,"本体価格（税抜）",null,null,null,null,null,null,null,null,null,{"$f":"R26","v":0},null,null,null,null,null,null,null,null,null,null,null,null,null,null,null,null,null,null,null,null,null,null,null,"登録\n番号",null,null,null,null,{"$f":"AU26","v":""}]
[]
[]
[]
[null,null,null,null,null,null,null,"消費税",null,null,null,null,0.1,null,null,null,null,{"$f":"R30","v":0}]
[]
[]
[]
[]
[]
[null,null,"月",null,null,"日",null,null,"名称",null,null,null,null,null,null,null,null,null,null,null,null,null,null,null,null,null,null,null,"摘要",null,null,null,null,null,null,null,null,null,null,null,null,"数量",null,null,null,null,"単位",null,null,null,"単価",null,null,null,null,null,null,null,"金額"]
[]
[]
[null,null,{"$f":"IF(C39,C39,\"\")","v":""},null,null,{"$f":"IF(F39,F39,\"\")","v":""},null,null,{"$f":"I39","v":0},null,null,null,null,null,null,null,null,null,null,null,null,null,null,null,null,null,null,null,{"$f":"AC39","v":0},null,null,null,null,null,null,null,null,null,null,null,null,{"$f":"IF(AP39,AP39,\"\")","v":""},null,null,null,null,{"$f":"AU39","v":0},null,null,null,{"$f":"IF(AY39,AY39,\"\")","v":""},null,null,null,null,null,null,null,{"$f":"BG39","v":""}]
[]
[]
[null,null,{"$f":"IF(C42,C42,\"\")","v":""},null,null,{"$f":"IF(F42,F42,\"\")","v":""},null,null,{"$f":"I42","v":0},null,null,null,null,null,null,null,null,null,null,null,null,null,null,null,null,null,null,null,{"$f":"AC42","v":0},null,null,null,null,null,null,null,null,null,null,null,null,{"$f":"IF(AP42,AP42,\"\")","v":""},null,null,null,null,{"$f":"AU42","v":0},null,null,null,{"$f":"IF(AY42,AY42,\"\")","v":""},null,null,null,null,null,null,null,{"$f":"BG42","v":""}]
[]
[]
[null,null,{"$f":"IF(C45,C45,\"\")","v":""},null,null,{"$f":"IF(F45,F45,\"\")","v":""},null,null,{"$f":"I45","v":0},null,null,null,null,null,null,null,null,null,null,null,null,null,null,null,null,null,null,null,{"$f":"AC45","v":0},null,null,null,null,null,null,null,null,null,null,null,null,{"$f":"IF(AP45,AP45,\"\")","v":""},null,null,null,null,{"$f":"AU45","v":0},null,null,null,{"$f":"IF(AY45,AY45,\"\")","v":""},null,null,null,null,null,null,null,{"$f":"BG45","v":""}]
[]
[]
[null,null,{"$f":"IF(C48,C48,\"\")","v":""},null,null,{"$f":"IF(F48,F48,\"\")","v":""},null,null,{"$f":"I48","v":0},null,null,null,null,null,null,null,null,null,null,null,null,null,null,null,null,null,null,null,{"$f":"AC48","v":0},null,null,null,null,null,null,null,null,null,null,null,null,{"$f":"IF(AP48,AP48,\"\")","v":""},null,null,null,null,{"$f":"AU48","v":0},null,null,null,{"$f":"IF(AY48,AY48,\"\")","v":""},null,null,null,null,null,null,null,{"$f":"BG48","v":""}]
[]
[]
[null,null,{"$f":"IF(C51,C51,\"\")","v":""},null,null,{"$f":"IF(F51,F51,\"\")","v":""},null,null,{"$f":"I51","v":0},null,null,null,null,null,null,null,null,null,null,null,null,null,null,null,null,null,null,null,{"$f":"AC51","v":0},null,null,null,null,null,null,null,null,null,null,null,null,{"$f":"IF(AP51,AP51,\"\")","v":""},null,null,null,null,{"$f":"AU51","v":0},null,null,null,{"$f":"IF(AY51,AY51,\"\")","v":""},null,null,null,null,null,null,null,{"$f":"BG51","v":""}]
[]
[]
[null,null,{"$f":"IF(C54,C54,\"\")","v":""},null,null,{"$f":"IF(F54,F54,\"\")","v":""},null,null,{"$f":"I54","v":0},null,null,null,null,null,null,null,null,null,null,null,null,null,null,null,null,null,null,null,{"$f":"AC54","v":0},null,null,null,null,null,null,null,null,null,null,null,null,{"$f":"IF(AP54,AP54,\"\")","v":""},null,null,null,null,{"$f":"AU54","v":0},null,null,null,{"$f":"IF(AY54,AY54,\"\")","v":""},null,null,null,null,null,null,null,{"$f":"BG54","v":""}]
[]
[]
[null,null,null,null,null,null,null,null,null,null,null,null,null,null,null,null,null,null,null,null,null,null,null,null,null,null,null,null,null,null,null,null,null,null,null,null,null,null,null,null,null,null,null,null,null,null,"小計",null,null,null,null,null,null,null,null,null,null,null,{"$f":"IF(BG57,BG57,\"\")","v":""}]
[]
[null,null,"振込先情報",null,null,null,"銀行名",null,null,null,null,null,null,null,{"$f":"O59","v":""},null,null,null,null,null,null,null,null,null,null,"支店名",null,null,null,null,null,null,null,{"$f":"AH59","v":""}]
[null,null,null,null,null,null,null,null,null,null,null,null,null,null,null,null,null,null,null,null,null,null,null,null,null,null,null,null,null,null,null,null,null,null,null,null,null,null,null,null,null,null,null,null,null,null,"消費税",null,null,null,null,null,null,null,null,null,null,null,{"$f":"IF(BG60,BG60,\"\")","v":""}]
[]
[null,null,null,null,null,null,"預金種別",null,null,null,null,null,null,null,{"$f":"O62","v":""},null,null,null,null,null,null,null,"口座番号",null,null,null,null,null,null,null,{"$f":"AE62","v":""},null,{"$f":"AG62","v":""},null,{"$f":"AI62","v":""},null,{"$f":"AK62","v":""},null,{"$f":"AM62","v":""},null,{"$f":"AO62","v":""},null,{"$f":"AQ62","v":""}]
[null,null,null,null,null,null,null,null,null,null,null,null,null,null,null,null,null,null,null,null,null,null,null,null,null,null,null,null,null,null,null,null,null,null,null,null,null,null,null,null,null,null,null,null,null,null,"合計",null,null,null,null,null,null,null,null,null,null,null,{"$f":"IF(BG63,BG63,\"\")","v":""}]
[]
[null,null,null,null,null,null,"口座名義\n（カタカナ）",null,null,null,null,null,null,null,{"$f":"O65","v":""}]
[]
[]
[]
[]
[null,null,"湘南推進工業使用欄",null,null,null,null,null,null,null,null,null,null,null,null,null,null,null,null,null,null,null,null,null,null,null,null,null,null,null,"社長",null,null,null,null,null,null,"役員",null,null,null,null,null,null,"工事部",null,null,null,null,null,null,null,null,null,null,null,null,null,"総務部"]
[]
[null,null,null,null,null,null,null,null,null,null,null,null,null,null,null,null,null,null,null,null,null,null,null,null,null,null,null,null,null,null,null,null,null,null,null,null,null,null,null,null,null,null,null,null,"部長",null,null,null,null,null,null,"担当者",null,null,null,null,null,null,"部長",null,null,null,null,null,null,"経理"]
[]
[null,null,null,null,null,null,null,null,null,null,null,null,null,null,null,null,null,null,null,null,null,null,null,null,null,null,null,null,null,null,null,null,null,null,null,null,null,null,null,null,null,null,null,null,null,null,null,null,null,null,null,{"$f":"AZ74","v":""}]
[]
[]
[]
[]
[]
[]
[]
[null,null,"《記入上のお願い》"]
[]
[]
[null,null,null,null,"☆　請求書は、毎月末日〆、翌月10日必着です。必ず押印の上、1部提出でお願いいたします。"]
[]
[]
[null,null,null,null,"☆　請求書は、必ず一現場につき一枚で提出してください（複数現場の場合）。"]
[]
[]
[null,null,null,null,"☆　請求が複数現場ある場合は、各現場の請求書とともに、必ず総括内訳書もご提出ください。"]

{"sheet":"【請求内訳書】","index":3,"n_rows":97,"n_cols":68,"rows_kept":97,"cut":false,"hidden":false,"merged":[[94,2,95,4],[94,5,95,7],[94,8,95,27],[94,28,95,40],[94,41,95,45],[94,46,95,57],[94,58,95,69],[96,2,97,4],[96,5,97,7],[96,8,97,27],[96,28,97,40],[96,41,97,45],[96,46,97,57],[96,58,97,69],[90,2,91,4],[90,5,91,7],[90,8,91,27],[90,28,91,40],[90,41,91,45],[90,46,91,49],[90,50,91,57],[90,58,91,69],[92,2,93,4],[92,5,93,7],[92,8,93,27],[92,28,93,40],[92,41,93,45],[92,46,93,57],[92,58,93,69],[86,2,87,4],[86,5,87,7],[86,8,87,27],[86,28,87,40],[86,41,87,45],[86,46,87,49],[86,50,87,57],[86,58,87,69],[88,2,89,4],[88,5,89,7],[88,8,89,27],[88,28,89,40],[88,41,89,45],[88,46,89,49],[88,50,89,57],[88,58,89,69],[82,2,83,4],[82,5,83,7],[82,8,83,27],[82,28,83,40],[82,41,83,45],[82,46,83,49],[82,50,83,57],[82,58,83,69],[84,2,85,4],[84,5,85,7],[84,8,85,27],[84,28,85,40],[84,41,85,45],[84,46,85,49],[84,50,85,57],[84,58,85,69],[78,2,79,4],[78,5,79,7],[78,8,79,27],[78,28,79,40],[78,41,79,45],[78,46,79,49],[78,50,79,57],[78,58,79,69],[80,2,81,4],[80,5,81,7],[80,8,81,27],[80,28,81,40],[80,41,81,45],[80,46,81,49],[80,50,81,57],[80,58,81,69],[74,2,75,4],[74,5,75,7],[74,8,75,27],[74,28,75,40],[74,41,75,45],[74,46,75,49],[74,50,75,57],[74,58,75,69],[76,2,77,4],[76,5,77,7],[76,8,77,27],[76,28,77,40],[76,41,77,45],[76,46,77,49],[76,50,77,57],[76,58,77,69],[70,2,71,4],[70,5,71,7],[70,8,71,27],[70,28,71,40],[70,41,71,45],[70,46,71,49],[70,50,71,57],[70,58,71,69],[72,2,73,4],[72,5,73,7],[72,8,73,27],[72,28,73,40],[72,41,73,45],[72,46,73,49],[72,50,73,57],[72,58,73,69],[66,2,67,4],[66,5,67,7],[66,8,67,27],[66,28,67,40],[66,41,67,45],[66,46,67,49],[66,50,67,57],[66,58,67,69],[68,2,69,4],[68,5,69,7],[68,8,69,27],[68,28,69,40],[68,41,69,45],[68,46,69,49],[68,50,69,57],[68,58,69,69],[62,2,63,4],[62,5,63,7],[62,8,63,27],[62,28,63,40],[62,41,63,45],[62,46,63,49],[62,50,63,57],[62,58,63,69],[64,2,65,4],[64,5,65,7],[64,8,65,27],[64,28,65,40],[64,41,65,45],[64,46,65,49],[64,50,65,57],[64,58,65,69],[58,2,59,4],[58,5,59,7],[58,8,59,27],[58,28,59,40],[58,41,59,45],[58,46,59,49],[58,50,59,57],[58,58,59,69],[60,2,61,4],[60,5,61,7],[60,8,61,27],[60,28,61,40],[60,41,61,45],[60,46,61,49],[60,50,61,57],[60,58,61,69],[54,2,55,4],[54,5,55,7],[54,8,55,27],[54,28,55,40],[54,41,55,45],[54,46,55,49],[54,50,55,57],[54,58,55,69],[56,2,57,4],[56,5,57,7],[56,8,57,27],[56,28,57,40],[56,41,57,45],[56,46,57,49],[56,50,57,57],[56,58,57,69],[49,0,51,27],[49,55,50,58],[49,59,50,62],[49,63,50,66],[49,67,50,69],[52,2,53,4],[52,5,53,7],[52,8,53,27],[52,28,53,40],[52,41,53,45],[52,46,53,49],[52,50,53,57],[52,58,53,69],[0,55,1,58],[0,63,1,66],[0,59,1,62],[0,67,1,69],[3,50,4,57],[3,58,4,69],[15,2,16,4],[15,5,16,7],[15,8,16,27],[15,28,16,40],[15,41,16,45],[15,46,16,49],[15,50,16,57],[15,58,16,69],[3,2,4,4],[3,5,4,7],[3,8,4,27],[3,28,4,40],[3,41,4,45],[3,46,4,49],[7,50,8,57],[7,58,8,69],[9,2,10,4],[9,5,10,7],[23,50,24,57],[23,58,24,69],[21,2,22,4],[21,5,22,7],[21,8,22,27],[21,28,22,40],[21,41,22,45],[21,46,22,49],[17,50,18,57],[17,58,18,69],[19,2,20,4],[19,5,20,7],[19,8,20,27],[19,28,20,40],[19,41,20,45],[19,46,20,49],[19,50,20,57],[19,58,20,69],[17,2,18,4],[17,5,18,7],[17,8,18,27],[17,28,18,40],[17,41,18,45],[17,46,18,49],[25,50,26,57],[25,58,26,69],[5,2,6,4],[5,5,6,7],[5,8,6,27],[5,28,6,40],[5,41,6,45],[5,46,6,49],[5,50,6,57],[5,58,6,69],[25,2,26,4],[25,5,26,7],[25,8,26,27],[25,28,26,40],[25,41,26,45],[25,46,26,49],[21,50,22,57],[21,58,22,69],[23,2,24,4],[23,5,24,7],[13,2,14,4],[13,5,14,7],[13,8,14,27],[13,28,14,40],[13,41,14,45],[13,46,14,49],[13,50,14,57],[13,58,14,69],[11,2,12,4],[11,5,12,7],[9,50,10,57],[9,58,10,69],[7,2,8,4],[7,5,8,7],[7,8,8,27],[7,28,8,40],[7,41,8,45],[7,46,8,49],[11,50,12,57],[11,58,12,69],[9,8,10,27],[9,28,10,40],[9,41,10,45],[9,46,10,49],[11,8,12,27],[11,28,12,40],[11,41,12,45],[11,46,12,49],[29,8,30,27],[29,28,30,40],[29,41,30,45],[29,46,30,49],[29,50,30,57],[29,58,30,69],[27,2,28,4],[27,5,28,7],[27,8,28,27],[27,28,28,40],[27,41,28,45],[27,46,28,49],[23,8,24,27],[23,28,24,40],[23,41,24,45],[23,46,24,49],[31,50,32,57],[31,58,32,69],[33,2,34,4],[33,5,34,7],[33,8,34,27],[33,28,34,40],[33,41,34,45],[33,46,34,49],[33,50,34,57],[33,58,34,69],[31,2,32,4],[31,5,32,7],[31,8,32,27],[31,28,32,40],[31,41,32,45],[31,46,32,49],[27,50,28,57],[27,58,28,69],[29,2,30,4],[29,5,30,7],[35,50,36,57],[35,58,36,69],[37,2,38,4],[37,5,38,7],[37,8,38,27],[37,28,38,40],[37,41,38,45],[37,46,38,49],[37,50,38,57],[37,58,38,69],[35,2,36,4],[35,5,36,7],[35,8,36,27],[35,28,36,40],[35,41,36,45],[35,46,36,49],[41,2,42,4],[41,5,42,7],[41,8,42,27],[41,28,42,40],[41,41,42,45],[41,46,42,49],[41,50,42,57],[41,58,42,69],[39,2,40,4],[39,5,40,7],[39,8,40,27],[39,28,40,40],[39,41,40,45],[39,46,40,49],[47,46,48,57],[47,58,48,69],[0,0,2,27],[43,46,44,57],[43,58,44,69],[45,46,46,57],[45,58,46,69],[47,2,48,4],[47,5,48,7],[47,8,48,27],[47,28,48,40],[47,41,48,45],[45,2,46,4],[45,5,46,7],[45,8,46,27],[45,28,46,40],[45,41,46,45],[43,2,44,4],[43,5,44,7],[43,8,44,27],[43,28,44,40],[43,41,44,45],[39,50,40,57],[39,58,40,69]]}
["請求内訳書",null,null,null,null,null,null,null,null,null,null,null,null,null,null,null,null,null,null,null,null,null,null,null,null,null,null,null,null,null,null,null,null,null,null,null,null,null,null,null,null,null,null,null,null,null,null,null,null,null,null,null,null,null,null,null,null,null,null,"枚中",null,null,null,null,null,null,null,"枚"]
[]
[]
[null,null,"月",null,null,"日",null,null,"名称",null,null,null,null,null,null,null,null,null,null,null,null,null,null,null,null,null,null,null,"摘要",null,null,null,null,null,null,null,null,null,null,null,null,"数量",null,null,null,null,"単位",null,null,null,"単価",null,null,null,null,null,null,null,"金額"]
[]
[null,null,null,null,null,null,null,null,null,null,null,null,null,null,null,null,null,null,null,null,null,null,null,null,null,null,null,null,null,null,null,null,null,null,null,null,null,null,null,null,null,null,null,null,null,null,null,null,null,null,null,null,null,null,null,null,null,null,{"$f":"AP6*AY6","v":0}]
[]
[null,null,null,null,null,null,null,null,null,null,null,null,null,null,null,null,null,null,null,null,null,null,null,null,null,null,null,null,null,null,null,null,null,null,null,null,null,null,null,null,null,null,null,null,null,null,null,null,null,null,null,null,null,null,null,null,null,null,{"$f":"AP8*AY8","v":0}]
[]
[null,null,null,null,null,null,null,null,null,null,null,null,null,null,null,null,null,null,null,null,null,null,null,null,null,null,null,null,null,null,null,null,null,null,null,null,null,null,null,null,null,null,null,null,null,null,null,null,null,null,null,null,null,null,null,null,null,null,{"$f":"AP10*AY10","v":0}]
[]
[null,null,null,null,null,null,null,null,null,null,null,null,null,null,null,null,null,null,null,null,null,null,null,null,null,null,null,null,null,null,null,null,null,null,null,null,null,null,null,null,null,null,null,null,null,null,null,null,null,null,null,null,null,null,null,null,null,null,{"$f":"AP12*AY12","v":0}]
[]
[null,null,null,null,null,null,null,null,null,null,null,null,null,null,null,null,null,null,null,null,null,null,null,null,null,null,null,null,null,null,null,null,null,null,null,null,null,null,null,null,null,null,null,null,null,null,null,null,null,null,null,null,null,null,null,null,null,null,{"$f":"AP14*AY14","v":0}]
[]
[null,null,null,null,null,null,null,null,null,null,null,null,null,null,null,null,null,null,null,null,null,null,null,null,null,null,null,null,null,null,null,null,null,null,null,null,null,null,null,null,null,null,null,null,null,null,null,null,null,null,null,null,null,null,null,null,null,null,{"$f":"AP16*AY16","v":0}]
[]
[null,null,null,null,null,null,null,null,null,null,null,null,null,null,null,null,null,null,null,null,null,null,null,null,null,null,null,null,null,null,null,null,null,null,null,null,null,null,null,null,null,null,null,null,null,null,null,null,null,null,null,null,null,null,null,null,null,null,{"$f":"AP18*AY18","v":0}]
[]
[null,null,null,null,null,null,null,null,null,null,null,null,null,null,null,null,null,null,null,null,null,null,null,null,null,null,null,null,null,null,null,null,null,null,null,null,null,null,null,null,null,null,null,null,null,null,null,null,null,null,null,null,null,null,null,null,null,null,{"$f":"AP20*AY20","v":0}]
[]
[null,null,null,null,null,null,null,null,null,null,null,null,null,null,null,null,null,null,null,null,null,null,null,null,null,null,null,null,null,null,null,null,null,null,null,null,null,null,null,null,null,null,null,null,null,null,null,null,null,null,null,null,null,null,null,null,null,null,{"$f":"AP22*AY22","v":0}]
[]
[null,null,null,null,null,null,null,null,null,null,null,null,null,null,null,null,null,null,null,null,null,null,null,null,null,null,null,null,null,null,null,null,null,null,null,null,null,null,null,null,null,null,null,null,null,null,null,null,null,null,null,null,null,null,null,null,null,null,{"$f":"AP24*AY24","v":0}]
[]
[null,null,null,null,null,null,null,null,null,null,null,null,null,null,null,null,null,null,null,null,null,null,null,null,null,null,null,null,null,null,null,null,null,null,null,null,null,null,null,null,null,null,null,null,null,null,null,null,null,null,null,null,null,null,null,null,null,null,{"$f":"AP26*AY26","v":0}]
[]
[null,null,null,null,null,null,null,null,null,null,null,null,null,null,null,null,null,null,null,null,null,null,null,null,null,null,null,null,null,null,null,null,null,null,null,null,null,null,null,null,null,null,null,null,null,null,null,null,null,null,null,null,null,null,null,null,null,null,{"$f":"AP28*AY28","v":0}]
[]
[null,null,null,null,null,null,null,null,null,null,null,null,null,null,null,null,null,null,null,null,null,null,null,null,null,null,null,null,null,null,null,null,null,null,null,null,null,null,null,null,null,null,null,null,null,null,null,null,null,null,null,null,null,null,null,null,null,null,{"$f":"AP30*AY30","v":0}]
[]
[null,null,null,null,null,null,null,null,null,null,null,null,null,null,null,null,null,null,null,null,null,null,null,null,null,null,null,null,null,null,null,null,null,null,null,null,null,null,null,null,null,null,null,null,null,null,null,null,null,null,null,null,null,null,null,null,null,null,{"$f":"AP32*AY32","v":0}]
[]
[null,null,null,null,null,null,null,null,null,null,null,null,null,null,null,null,null,null,null,null,null,null,null,null,null,null,null,null,null,null,null,null,null,null,null,null,null,null,null,null,null,null,null,null,null,null,null,null,null,null,null,null,null,null,null,null,null,null,{"$f":"AP34*AY34","v":0}]
[]
[null,null,null,null,null,null,null,null,null,null,null,null,null,null,null,null,null,null,null,null,null,null,null,null,null,null,null,null,null,null,null,null,null,null,null,null,null,null,null,null,null,null,null,null,null,null,null,null,null,null,null,null,null,null,null,null,null,null,{"$f":"AP36*AY36","v":0}]
[]
[null,null,null,null,null,null,null,null,null,null,null,null,null,null,null,null,null,null,null,null,null,null,null,null,null,null,null,null,null,null,null,null,null,null,null,null,null,null,null,null,null,null,null,null,null,null,null,null,null,null,null,null,null,null,null,null,null,null,{"$f":"AP38*AY38","v":0}]
[]
[null,null,null,null,null,null,null,null,null,null,null,null,null,null,null,null,null,null,null,null,null,null,null,null,null,null,null,null,null,null,null,null,null,null,null,null,null,null,null,null,null,null,null,null,null,null,null,null,null,null,null,null,null,null,null,null,null,null,{"$f":"AP40*AY40","v":0}]
[]
[null,null,null,null,null,null,null,null,null,null,null,null,null,null,null,null,null,null,null,null,null,null,null,null,null,null,null,null,null,null,null,null,null,null,null,null,null,null,null,null,null,null,null,null,null,null,null,null,null,null,null,null,null,null,null,null,null,null,{"$f":"AP42*AY42","v":0}]
[]
[null,null,null,null,null,null,null,null,null,null,null,null,null,null,null,null,null,null,null,null,null,null,null,null,null,null,null,null,null,null,null,null,null,null,null,null,null,null,null,null,null,null,null,null,null,null,"小計",null,null,null,null,null,null,null,null,null,null,null,{"$f":"SUM(BG6:BR43)","v":0}]
[]
[null,null,null,null,null,null,null,null,null,null,null,null,null,null,null,null,null,null,null,null,null,null,null,null,null,null,null,null,null,null,null,null,null,null,null,null,null,null,null,null,null,null,null,null,null,null,"消費税",null,null,null,null,null,null,null,null,null,null,null,{"$f":"BG44/10","v":0}]
[]
[null,null,null,null,null,null,null,null,null,null,null,null,null,null,null,null,null,null,null,null,null,null,null,null,null,null,null,null,null,null,null,null,null,null,null,null,null,null,null,null,null,null,null,null,null,null,"合計",null,null,null,null,null,null,null,null,null,null,null,{"$f":"SUM(BG44:BR47)","v":0}]
[]
["請求内訳書",null,null,null,null,null,null,null,null,null,null,null,null,null,null,null,null,null,null,null,null,null,null,null,null,null,null,null,null,null,null,null,null,null,null,null,null,null,null,null,null,null,null,null,null,null,null,null,null,null,null,null,null,null,null,null,null,null,null,"枚中",null,null,null,null,null,null,null,"枚"]
[]
[]
[null,null,"月",null,null,"日",null,null,"名称",null,null,null,null,null,null,null,null,null,null,null,null,null,null,null,null,null,null,null,"摘要",null,null,null,null,null,null,null,null,null,null,null,null,"数量",null,null,null,null,"単位",null,null,null,"単価",null,null,null,null,null,null,null,"金額"]
[]
[null,null,null,null,null,null,null,null,null,null,null,null,null,null,null,null,null,null,null,null,null,null,null,null,null,null,null,null,null,null,null,null,null,null,null,null,null,null,null,null,null,null,null,null,null,null,null,null,null,null,null,null,null,null,null,null,null,null,{"$f":"AP55*AY55","v":0}]
[]
[null,null,null,null,null,null,null,null,null,null,null,null,null,null,null,null,null,null,null,null,null,null,null,null,null,null,null,null,null,null,null,null,null,null,null,null,null,null,null,null,null,null,null,null,null,null,null,null,null,null,null,null,null,null,null,null,null,null,{"$f":"AP57*AY57","v":0}]
[]
[null,null,null,null,null,null,null,null,null,null,null,null,null,null,null,null,null,null,null,null,null,null,null,null,null,null,null,null,null,null,null,null,null,null,null,null,null,null,null,null,null,null,null,null,null,null,null,null,null,null,null,null,null,null,null,null,null,null,{"$f":"AP59*AY59","v":0}]
[]
[null,null,null,null,null,null,null,null,null,null,null,null,null,null,null,null,null,null,null,null,null,null,null,null,null,null,null,null,null,null,null,null,null,null,null,null,null,null,null,null,null,null,null,null,null,null,null,null,null,null,null,null,null,null,null,null,null,null,{"$f":"AP61*AY61","v":0}]
[]
[null,null,null,null,null,null,null,null,null,null,null,null,null,null,null,null,null,null,null,null,null,null,null,null,null,null,null,null,null,null,null,null,null,null,null,null,null,null,null,null,null,null,null,null,null,null,null,null,null,null,null,null,null,null,null,null,null,null,{"$f":"AP63*AY63","v":0}]
[]
[null,null,null,null,null,null,null,null,null,null,null,null,null,null,null,null,null,null,null,null,null,null,null,null,null,null,null,null,null,null,null,null,null,null,null,null,null,null,null,null,null,null,null,null,null,null,null,null,null,null,null,null,null,null,null,null,null,null,{"$f":"AP65*AY65","v":0}]
[]
[null,null,null,null,null,null,null,null,null,null,null,null,null,null,null,null,null,null,null,null,null,null,null,null,null,null,null,null,null,null,null,null,null,null,null,null,null,null,null,null,null,null,null,null,null,null,null,null,null,null,null,null,null,null,null,null,null,null,{"$f":"AP67*AY67","v":0}]
[]
[null,null,null,null,null,null,null,null,null,null,null,null,null,null,null,null,null,null,null,null,null,null,null,null,null,null,null,null,null,null,null,null,null,null,null,null,null,null,null,null,null,null,null,null,null,null,null,null,null,null,null,null,null,null,null,null,null,null,{"$f":"AP69*AY69","v":0}]
[]
[null,null,null,null,null,null,null,null,null,null,null,null,null,null,null,null,null,null,null,null,null,null,null,null,null,null,null,null,null,null,null,null,null,null,null,null,null,null,null,null,null,null,null,null,null,null,null,null,null,null,null,null,null,null,null,null,null,null,{"$f":"AP71*AY71","v":0}]
[]
[null,null,null,null,null,null,null,null,null,null,null,null,null,null,null,null,null,null,null,null,null,null,null,null,null,null,null,null,null,null,null,null,null,null,null,null,null,null,null,null,null,null,null,null,null,null,null,null,null,null,null,null,null,null,null,null,null,null,{"$f":"AP73*AY73","v":0}]
[]
[null,null,null,null,null,null,null,null,null,null,null,null,null,null,null,null,null,null,null,null,null,null,null,null,null,null,null,null,null,null,null,null,null,null,null,null,null,null,null,null,null,null,null,null,null,null,null,null,null,null,null,null,null,null,null,null,null,null,{"$f":"AP75*AY75","v":0}]
[]
[null,null,null,null,null,null,null,null,null,null,null,null,null,null,null,null,null,null,null,null,null,null,null,null,null,null,null,null,null,null,null,null,null,null,null,null,null,null,null,null,null,null,null,null,null,null,null,null,null,null,null,null,null,null,null,null,null,null,{"$f":"AP77*AY77","v":0}]
[]
[null,null,null,null,null,null,null,null,null,null,null,null,null,null,null,null,null,null,null,null,null,null,null,null,null,null,null,null,null,null,null,null,null,null,null,null,null,null,null,null,null,null,null,null,null,null,null,null,null,null,null,null,null,null,null,null,null,null,{"$f":"AP79*AY79","v":0}]
[]
[null,null,null,null,null,null,null,null,null,null,null,null,null,null,null,null,null,null,null,null,null,null,null,null,null,null,null,null,null,null,null,null,null,null,null,null,null,null,null,null,null,null,null,null,null,null,null,null,null,null,null,null,null,null,null,null,null,null,{"$f":"AP81*AY81","v":0}]
[]
[null,null,null,null,null,null,null,null,null,null,null,null,null,null,null,null,null,null,null,null,null,null,null,null,null,null,null,null,null,null,null,null,null,null,null,null,null,null,null,null,null,null,null,null,null,null,null,null,null,null,null,null,null,null,null,null,null,null,{"$f":"AP83*AY83","v":0}]
[]
[null,null,null,null,null,null,null,null,null,null,null,null,null,null,null,null,null,null,null,null,null,null,null,null,null,null,null,null,null,null,null,null,null,null,null,null,null,null,null,null,null,null,null,null,null,null,null,null,null,null,null,null,null,null,null,null,null,null,{"$f":"AP85*AY85","v":0}]
[]
[null,null,null,null,null,null,null,null,null,null,null,null,null,null,null,null,null,null,null,null,null,null,null,null,null,null,null,null,null,null,null,null,null,null,null,null,null,null,null,null,null,null,null,null,null,null,null,null,null,null,null,null,null,null,null,null,null,null,{"$f":"AP87*AY87","v":0}]
[]
[null,null,null,null,null,null,null,null,null,null,null,null,null,null,null,null,null,null,null,null,null,null,null,null,null,null,null,null,null,null,null,null,null,null,null,null,null,null,null,null,null,null,null,null,null,null,null,null,null,null,null,null,null,null,null,null,null,null,{"$f":"AP89*AY89","v":0}]
[]
[null,null,null,null,null,null,null,null,null,null,null,null,null,null,null,null,null,null,null,null,null,null,null,null,null,null,null,null,null,null,null,null,null,null,null,null,null,null,null,null,null,null,null,null,null,null,null,null,null,null,null,null,null,null,null,null,null,null,{"$f":"AP91*AY91","v":0}]
[]
[null,null,null,null,null,null,null,null,null,null,null,null,null,null,null,null,null,null,null,null,null,null,null,null,null,null,null,null,null,null,null,null,null,null,null,null,null,null,null,null,null,null,null,null,null,null,"小計",null,null,null,null,null,null,null,null,null,null,null,{"$f":"SUM(BG55:BR92)","v":0}]
[]
[null,null,null,null,null,null,null,null,null,null,null,null,null,null,null,null,null,null,null,null,null,null,null,null,null,null,null,null,null,null,null,null,null,null,null,null,null,null,null,null,null,null,null,null,null,null,"消費税",null,null,null,null,null,null,null,null,null,null,null,{"$f":"BG93/10","v":0}]
[]
[null,null,null,null,null,null,null,null,null,null,null,null,null,null,null,null,null,null,null,null,null,null,null,null,null,null,null,null,null,null,null,null,null,null,null,null,null,null,null,null,null,null,null,null,null,null,"合計",null,null,null,null,null,null,null,null,null,null,null,{"$f":"SUM(BG93:BR96)","v":0}]

{"sheet":"【請求総括表】","index":4,"n_rows":186,"n_cols":70,"rows_kept":186,"cut":false,"hidden":false,"merged":[[110,41,112,44],[110,46,112,65],[82,2,84,14],[69,58,70,71],[71,44,72,50],[71,51,72,57],[71,58,72,64],[71,65,72,71],[167,51,173,57],[138,54,140,69],[141,2,143,9],[141,10,143,27],[141,28,143,42],[141,43,143,53],[141,54,143,69],[144,2,146,9],[144,10,146,27],[144,28,146,42],[144,43,146,53],[138,2,140,9],[138,10,140,27],[138,28,140,42],[138,43,140,53],[167,65,173,71],[152,25,154,32],[152,33,154,43],[135,43,137,53],[135,54,137,69],[129,2,131,9],[129,10,131,27],[129,28,131,42],[129,43,131,53],[129,54,131,69],[144,54,146,69],[147,2,149,27],[147,28,149,42],[147,43,149,53],[147,54,149,69],[132,2,134,9],[132,10,134,27],[132,28,134,42],[132,43,134,53],[47,43,49,53],[50,43,52,53],[53,43,55,53],[123,7,126,11],[123,12,126,16],[123,17,126,35],[113,41,115,44],[113,46,115,69],[115,2,126,6],[115,7,118,35],[116,41,118,44],[116,46,118,69],[119,7,122,16],[119,17,122,35],[119,41,121,44],[119,46,121,69],[50,2,52,9],[98,34,100,36],[100,41,102,49],[100,50,102,52],[100,53,102,55],[100,56,102,58],[73,65,79,71],[107,46,109,69],[41,54,43,69],[44,54,46,69],[47,54,49,69],[50,54,52,69],[53,28,55,42],[38,10,40,27],[41,10,43,27],[44,10,46,27],[47,10,49,27],[50,10,52,27],[38,28,40,42],[41,28,43,42],[44,28,46,42],[47,28,49,42],[38,43,40,53],[41,43,43,53],[44,43,46,53],[50,28,52,42],[53,54,55,69],[53,2,55,27],[38,2,40,9],[41,2,43,9],[44,2,46,9],[47,2,49,9],[102,28,104,31],[104,41,106,44],[104,46,106,47],[176,2,178,14],[179,4,181,71],[158,6,160,13],[158,14,160,43],[155,36,157,37],[155,38,157,39],[155,40,157,41],[155,42,157,43],[155,30,157,31],[155,32,157,33],[155,34,157,35],[152,2,160,5],[155,6,157,13],[155,14,157,21],[155,22,157,29],[132,54,134,69],[135,2,137,9],[135,10,137,27],[135,28,137,42],[152,6,154,13],[152,14,154,24],[96,64,97,65],[96,66,97,68],[96,69,97,70],[38,54,40,69],[182,4,184,71],[163,58,164,71],[165,44,166,50],[165,51,166,57],[165,58,166,64],[165,65,166,71],[167,30,173,36],[167,37,173,43],[167,44,173,50],[167,58,173,64],[163,2,165,16],[163,30,166,36],[163,37,166,43],[163,44,164,57],[106,6,107,22],[106,23,107,25],[106,26,107,28],[106,29,107,31],[107,41,109,44],[102,2,104,27],[25,7,28,16],[25,17,28,35],[25,41,27,44],[110,67,112,69],[104,52,106,53],[104,54,106,55],[104,56,106,57],[104,58,106,59],[104,60,106,61],[104,48,106,49],[104,50,106,51],[73,51,79,57],[85,4,87,71],[88,4,90,71],[95,11,97,48],[96,51,97,54],[96,55,97,58],[96,59,97,60],[96,61,97,63],[73,30,79,36],[73,37,79,43],[73,44,79,50],[73,58,79,64],[91,4,93,71],[10,48,12,49],[64,6,66,13],[64,14,66,43],[69,2,71,16],[69,30,72,36],[69,37,72,43],[69,44,70,57],[61,36,63,37],[61,38,63,39],[61,40,63,41],[61,42,63,43],[61,30,63,31],[61,32,63,33],[61,34,63,35],[58,2,66,5],[58,6,60,13],[58,14,60,24],[58,25,60,32],[58,33,60,43],[61,6,63,13],[61,14,63,21],[61,22,63,29],[22,41,24,44],[22,46,24,69],[12,6,13,22],[8,28,10,31],[10,41,12,44],[12,23,13,25],[12,26,13,28],[12,29,13,31],[13,41,15,44],[8,2,10,27],[10,46,12,47],[2,66,3,68],[2,69,3,70],[4,34,6,36],[6,41,8,49],[6,50,8,52],[6,53,8,55],[6,56,8,58],[1,11,3,48],[2,51,3,54],[2,55,3,58],[2,59,3,60],[2,61,3,63],[2,64,3,65],[185,4,187,71],[13,46,15,69],[16,41,18,44],[16,46,18,65],[16,67,18,69],[10,52,12,53],[10,54,12,55],[10,50,12,51],[29,7,32,11],[29,12,32,16],[29,17,32,35],[35,10,37,27],[19,41,21,44],[19,46,21,69],[21,2,32,6],[21,7,24,35],[25,46,27,69],[35,2,37,9],[35,54,37,69],[35,43,37,53],[35,28,37,42],[10,56,12,57],[10,58,12,59],[10,60,12,61]]}
[]
[null,null,null,null,null,null,null,null,null,null,null,"請求総括表"]
[null,null,null,null,null,null,null,null,null,null,null,null,null,null,null,null,null,null,null,null,null,null,null,null,null,null,null,null,null,null,null,null,null,null,null,null,null,null,null,null,null,null,null,null,null,null,null,null,null,null,null,"西暦",null,null,null,{"$f":"+YEAR(入力シート!O34)","v":1900},null,null,null,"年",null,{"$f":"+MONTH(入力シート!O34)","v":1},null,null,"月",null,{"$f":"+DAY(入力シート!O34)","v":0},null,null,"日"]
[]
[]
[]
[null,null,null,null,null,null,null,null,null,null,null,null,null,null,null,null,null,null,null,null,null,null,null,null,null,null,null,null,null,null,null,null,null,null,null,null,null,null,null,null,null,"取引先コード"]
[]
[null,null,"株式会社　湘南推進工業",null,null,null,null,null,null,null,null,null,null,null,null,null,null,null,null,null,null,null,null,null,null,null,null,null,"御中"]
[]
[null,null,null,null,null,null,null,null,null,null,null,null,null,null,null,null,null,null,null,null,null,null,null,null,null,null,null,null,null,null,null,null,null,null,null,null,null,null,null,null,null,"〒",null,null,null,null,{"$f":"+IF(入力シート!O4=\"\",\"\",+入力シート!O4)","v":""},null,{"$f":"+IF(入力シート!Q4=\"\",\"\",+入力シート!Q4)","v":""},null,{"$f":"+IF(入力シート!S4=\"\",\"\",+入力シート!S4)","v":""},null,"－",null,{"$f":"+IF(入力シート!W4=\"\",\"\",+入力シート!W4)","v":""},null,{"$f":"+IF(入力シート!Y4=\"\",\"\",+入力シート!Y4)","v":""},null,{"$f":"+IF(入力シート!AA4=\"\",\"\",+入力シート!AA4)","v":""},null,{"$f":"+IF(入力シート!AC4=\"\",\"\",+入力シート!AC4)","v":""}]
[]
[null,null,null,null,null,null,"下記の通り請求致します"]
[null,null,null,null,null,null,null,null,null,null,null,null,null,null,null,null,null,null,null,null,null,null,null,null,null,null,null,null,null,null,null,null,null,null,null,null,null,null,null,null,null,"住所",null,null,null,null,{"$f":"+IF(入力シート!O6=\"\",\"\",+入力シート!O6)","v":""}]
[]
[]
[null,null,null,null,null,null,null,null,null,null,null,null,null,null,null,null,null,null,null,null,null,null,null,null,null,null,null,null,null,null,null,null,null,null,null,null,null,null,null,null,null,"会社名",null,null,null,null,{"$f":"+IF(入力シート!O8=\"\",\"\",+入力シート!O8)","v":""},null,null,null,null,null,null,null,null,null,null,null,null,null,null,null,null,null,null,null,null,"㊞"]
[]
[]
[null,null,null,null,null,null,null,null,null,null,null,null,null,null,null,null,null,null,null,null,null,null,null,null,null,null,null,null,null,null,null,null,null,null,null,null,null,null,null,null,null,"電話",null,null,null,null,{"$f":"+IF(入力シート!O10=\"\",\"\",+入力シート!O10)","v":""}]
[]
[null,null,"今回請求金額",null,null,null,null,{"$f":"+IF(R26+R30=0,\"\",R26+R30)","v":""}]
[null,null,null,null,null,null,null,null,null,null,null,null,null,null,null,null,null,null,null,null,null,null,null,null,null,null,null,null,null,null,null,null,null,null,null,null,null,null,null,null,null,"FAX",null,null,null,null,{"$f":"+IF(入力シート!O11=\"\",\"\",+入力シート!O11)","v":""}]
[]
[]
[null,null,null,null,null,null,null,"本体価格（税抜）",null,null,null,null,null,null,null,null,null,{"$f":"AC54","v":0},null,null,null,null,null,null,null,null,null,null,null,null,null,null,null,null,null,null,null,null,null,null,null,"登録\n番号",null,null,null,null,{"$f":"+IF(入力シート!O12=\"\",\"\",+入力シート!O12)","v":""}]
[]
[]
[]
[null,null,null,null,null,null,null,"消費税",null,null,null,null,0.1,null,null,null,null,{"$f":"AR54","v":0}]
[]
[]
[]
[]
[]
[null,null,"工事番号",null,null,null,null,null,null,null,"現場名",null,null,null,null,null,null,null,null,null,null,null,null,null,null,null,null,null,"本体価格（税抜）",null,null,null,null,null,null,null,null,null,null,null,null,null,null,"消費税（10％）",null,null,null,null,null,null,null,null,null,null,"備考"]
[]
[]
[null,null,null,null,null,null,null,null,null,null,null,null,null,null,null,null,null,null,null,null,null,null,null,null,null,null,null,null,null,null,null,null,null,null,null,null,null,null,null,null,null,null,null,null,null,null,null,null,null,null,null,null,null,null,{"$f":"IF(AP39*AY39,AP39*AY39,\"\")","v":""}]
[]
[]
[null,null,null,null,null,null,null,null,null,null,null,null,null,null,null,null,null,null,null,null,null,null,null,null,null,null,null,null,null,null,null,null,null,null,null,null,null,null,null,null,null,null,null,null,null,null,null,null,null,null,null,null,null,null,{"$f":"IF(AP42*AY42,AP42*AY42,\"\")","v":""}]
[]
[]
[null,null,null,null,null,null,null,null,null,null,null,null,null,null,null,null,null,null,null,null,null,null,null,null,null,null,null,null,null,null,null,null,null,null,null,null,null,null,null,null,null,null,null,null,null,null,null,null,null,null,null,null,null,null,{"$f":"IF(AP45*AY45,AP45*AY45,\"\")","v":""}]
[]
[]
[null,null,null,null,null,null,null,null,null,null,null,null,null,null,null,null,null,null,null,null,null,null,null,null,null,null,null,null,null,null,null,null,null,null,null,null,null,null,null,null,null,null,null,null,null,null,null,null,null,null,null,null,null,null,{"$f":"IF(AP48*AY48,AP48*AY48,\"\")","v":""}]
[]
[]
[null,null,null,null,null,null,null,null,null,null,null,null,null,null,null,null,null,null,null,null,null,null,null,null,null,null,null,null,null,null,null,null,null,null,null,null,null,null,null,null,null,null,null,null,null,null,null,null,null,null,null,null,null,null,{"$f":"IF(AP51*AY51,AP51*AY51,\"\")","v":""}]
[]
[]
[null,null,"合計",null,null,null,null,null,null,null,null,null,null,null,null,null,null,null,null,null,null,null,null,null,null,null,null,null,{"$f":"SUM(AC39:AQ53)","v":0},null,null,null,null,null,null,null,null,null,null,null,null,null,null,{"$f":"SUM(AR39:BB53)","v":0},null,null,null,null,null,null,null,null,null,null,{"$f":"IF(AP54*AY54,AP54*AY54,\"\")","v":""}]
[]
[]
[]
[]
[null,null,"振込先情報",null,null,null,"銀行名",null,null,null,null,null,null,null,{"$f":"IF(入力シート!N26=\"\",\"\",入力シート!N26)","v":""},null,null,null,null,null,null,null,null,null,null,"支店名",null,null,null,null,null,null,null,{"$f":"IF(入力シート!AK26=\"\",\"\",入力シート!AK26)","v":""}]
[]
[]
[null,null,null,null,null,null,"預金種別",null,null,null,null,null,null,null,{"$f":"IF(入力シート!N28=\"\",\"\",入力シート!N28)","v":""},null,null,null,null,null,null,null,"口座番号",null,null,null,null,null,null,null,{"$f":"IF(入力シート!AK28=\"\",\"\",入力シート!AK28)","v":""},null,{"$f":"IF(入力シート!AM28=\"\",\"\",入力シート!AM28)","v":""},null,{"$f":"IF(入力シート!AO28=\"\",\"\",入力シート!AO28)","v":""},null,{"$f":"IF(入力シート!AQ28=\"\",\"\",入力シート!AQ28)","v":""},null,{"$f":"IF(入力シート!AS28=\"\",\"\",入力シート!AS28)","v":""},null,{"$f":"IF(入力シート!AU28=\"\",\"\",入力シート!AU28)","v":""},null,{"$f":"IF(入力シート!AW28=\"\",\"\",入力シート!AW28)","v":""}]
[]
[]
[null,null,null,null,null,null,"口座名義\n（カタカナ）",null,null,null,null,null,null,null,{"$f":"IF(入力シート!N30=\"\",\"\",入力シート!N30)","v":""}]
[]
[]
[]
[]
[null,null,"湘南推進工業使用欄",null,null,null,null,null,null,null,null,null,null,null,null,null,null,null,null,null,null,null,null,null,null,null,null,null,null,null,"社長",null,null,null,null,null,null,"役員",null,null,null,null,null,null,"工事部",null,null,null,null,null,null,null,null,null,null,null,null,null,"総務部"]
[]
[null,null,null,null,null,null,null,null,null,null,null,null,null,null,null,null,null,null,null,null,null,null,null,null,null,null,null,null,null,null,null,null,null,null,null,null,null,null,null,null,null,null,null,null,"部長",null,null,null,null,null,null,"担当者",null,null,null,null,null,null,"部長",null,null,null,null,null,null,"経理"]
[]
[]
[]
[]
[]
[]
[]
[]
[]
[]
[null,null,"《記入上のお願い》"]
[]
[]
[null,null,null,null,"☆　請求書は、毎月末日〆、翌月10日必着です。必ず押印の上、1部提出でお願いいたします。"]
[]
[]
[null,null,null,null,"☆　請求書は、必ず一現場につき一枚でご提出ください（複数現場の場合）。"]
[]
[]
[null,null,null,null,"☆　請求が複数現場ある場合は、各現場の請求書とともに、必ず請求総括表もご提出ください。"]
[]
[]
[]
[null,null,null,null,null,null,null,null,null,null,null,"請求総括表"]
[null,null,null,null,null,null,null,null,null,null,null,null,null,null,null,null,null,null,null,null,null,null,null,null,null,null,null,null,null,null,null,null,null,null,null,null,null,null,null,null,null,null,null,null,null,null,null,null,null,null,null,"西暦",null,null,null,{"$f":"BD3","v":1900},null,null,null,"年",null,{"$f":"BJ3","v":1},null,null,"月",null,{"$f":"BO3","v":0},null,null,"日"]
[]
[]
[]
[null,null,null,null,null,null,null,null,null,null,null,null,null,null,null,null,null,null,null,null,null,null,null,null,null,null,null,null,null,null,null,null,null,null,null,null,null,null,null,null,null,"取引先コード"]
[]
[null,null,"株式会社　湘南推進工業",null,null,null,null,null,null,null,null,null,null,null,null,null,null,null,null,null,null,null,null,null,null,null,null,null,"御中"]
[]
[null,null,null,null,null,null,null,null,null,null,null,null,null,null,null,null,null,null,null,null,null,null,null,null,null,null,null,null,null,null,null,null,null,null,null,null,null,null,null,null,null,"〒",null,null,null,null,{"$f":"AU11","v":""},null,{"$f":"AW11","v":""},null,{"$f":"AY11","v":""},null,"－",null,{"$f":"BC11","v":""},null,{"$f":"BE11","v":""},null,{"$f":"BG11","v":""},null,{"$f":"BI11","v":""}]
[]
[null,null,null,null,null,null,"下記の通り請求致します"]
[null,null,null,null,null,null,null,null,null,null,null,null,null,null,null,null,null,null,null,null,null,null,null,null,null,null,null,null,null,null,null,null,null,null,null,null,null,null,null,null,null,"住所",null,null,null,null,{"$f":"AU14","v":""}]
[]
[]
[null,null,null,null,null,null,null,null,null,null,null,null,null,null,null,null,null,null,null,null,null,null,null,null,null,null,null,null,null,null,null,null,null,null,null,null,null,null,null,null,null,"会社名",null,null,null,null,{"$f":"AU17","v":""},null,null,null,null,null,null,null,null,null,null,null,null,null,null,null,null,null,null,null,null,"㊞"]
[]
[]
[null,null,null,null,null,null,null,null,null,null,null,null,null,null,null,null,null,null,null,null,null,null,null,null,null,null,null,null,null,null,null,null,null,null,null,null,null,null,null,null,null,"電話",null,null,null,null,{"$f":"AU20","v":""}]
[]
[null,null,"今回請求金額",null,null,null,null,{"$f":"H22","v":""}]
[null,null,null,null,null,null,null,null,null,null,null,null,null,null,null,null,null,null,null,null,null,null,null,null,null,null,null,null,null,null,null,null,null,null,null,null,null,null,null,null,null,"FAX",null,null,null,null,{"$f":"AU23","v":""}]
[]
[]
[null,null,null,null,null,null,null,"本体価格（税抜）",null,null,null,null,null,null,null,null,null,{"$f":"R26","v":0},null,null,null,null,null,null,null,null,null,null,null,null,null,null,null,null,null,null,null,null,null,null,null,"登録\n番号",null,null,null,null,{"$f":"AU26","v":""}]
[]
[]
[]
[null,null,null,null,null,null,null,"消費税",null,null,null,null,0.1,null,null,null,null,{"$f":"R30","v":0}]
[]
[]
[]
[]
[]
[null,null,"工事番号",null,null,null,null,null,null,null,"現場名",null,null,null,null,null,null,null,null,null,null,null,null,null,null,null,null,null,"本体価格（税抜）",null,null,null,null,null,null,null,null,null,null,null,null,null,null,"消費税（10％）",null,null,null,null,null,null,null,null,null,null,"備考"]
[]
[]
[null,null,{"$f":"C39","v":0},null,null,null,null,null,null,null,{"$f":"K39","v":0},null,null,null,null,null,null,null,null,null,null,null,null,null,null,null,null,null,{"$f":"AC39","v":0},null,null,null,null,null,null,null,null,null,null,null,null,null,null,{"$f":"AR39","v":0},null,null,null,null,null,null,null,null,null,null,{"$f":"BC39","v":""}]
[]
[]
[null,null,{"$f":"C42","v":0},null,null,null,null,null,null,null,{"$f":"K42","v":0},null,null,null,null,null,null,null,null,null,null,null,null,null,null,null,null,null,{"$f":"AC42","v":0},null,null,null,null,null,null,null,null,null,null,null,null,null,null,{"$f":"AR42","v":0},null,null,null,null,null,null,null,null,null,null,{"$f":"BC42","v":""}]
[]
[]
[null,null,{"$f":"C45","v":0},null,null,null,null,null,null,null,{"$f":"K45","v":0},null,null,null,null,null,null,null,null,null,null,null,null,null,null,null,null,null,{"$f":"AC45","v":0},null,null,null,null,null,null,null,null,null,null,null,null,null,null,{"$f":"AR45","v":0},null,null,null,null,null,null,null,null,null,null,{"$f":"BC45","v":""}]
[]
[]
[null,null,{"$f":"C48","v":0},null,null,null,null,null,null,null,{"$f":"K48","v":0},null,null,null,null,null,null,null,null,null,null,null,null,null,null,null,null,null,{"$f":"AC48","v":0},null,null,null,null,null,null,null,null,null,null,null,null,null,null,{"$f":"AR48","v":0},null,null,null,null,null,null,null,null,null,null,{"$f":"BC48","v":""}]
[]
[]
[null,null,{"$f":"C51","v":0},null,null,null,null,null,null,null,{"$f":"K51","v":0},null,null,null,null,null,null,null,null,null,null,null,null,null,null,null,null,null,{"$f":"AC51","v":0},null,null,null,null,null,null,null,null,null,null,null,null,null,null,{"$f":"AR51","v":0},null,null,null,null,null,null,null,null,null,null,{"$f":"BC51","v":""}]
[]
[]
[null,null,"合計",null,null,null,null,null,null,null,null,null,null,null,null,null,null,null,null,null,null,null,null,null,null,null,null,null,{"$f":"AC54","v":0},null,null,null,null,null,null,null,null,null,null,null,null,null,null,{"$f":"AR54","v":0},null,null,null,null,null,null,null,null,null,null,{"$f":"BC54","v":""}]
[]
[]
[]
[]
[null,null,"振込先情報",null,null,null,"銀行名",null,null,null,null,null,null,null,{"$f":"O59","v":""},null,null,null,null,null,null,null,null,null,null,"支店名",null,null,null,null,null,null,null,{"$f":"AH59","v":""}]
[]
[]
[null,null,null,null,null,null,"預金種別",null,null,null,null,null,null,null,{"$f":"O62","v":""},null,null,null,null,null,null,null,"口座番号",null,null,null,null,null,null,null,{"$f":"AE62","v":""},null,{"$f":"AG62","v":""},null,{"$f":"AI62","v":""},null,{"$f":"AK62","v":""},null,{"$f":"AM62","v":""},null,{"$f":"AO62","v":""},null,{"$f":"AQ62","v":""}]
[]
[]
[null,null,null,null,null,null,"口座名義\n（カタカナ）",null,null,null,null,null,null,null,{"$f":"O65","v":""}]
[]
[]
[]
[]
[null,null,"湘南推進工業使用欄",null,null,null,null,null,null,null,null,null,null,null,null,null,null,null,null,null,null,null,null,null,null,null,null,null,null,null,"社長",null,null,null,null,null,null,"役員",null,null,null,null,null,null,"工事部",null,null,null,null,null,null,null,null,null,null,null,null,null,"総務部"]
[]
[null,null,null,null,null,null,null,null,null,null,null,null,null,null,null,null,null,null,null,null,null,null,null,null,null,null,null,null,null,null,null,null,null,null,null,null,null,null,null,null,null,null,null,null,"部長",null,null,null,null,null,null,"担当者",null,null,null,null,null,null,"部長",null,null,null,null,null,null,"経理"]
[]
[]
[]
[]
[]
[]
[]
[]
[]
[]
[null,null,"《記入上のお願い》"]
[]
[]
[null,null,null,null,"☆　請求書は、毎月末日〆、翌月10日必着です。必ず押印の上、1部提出でお願いいたします。"]
[]
[]
[null,null,null,null,"☆　請求書は、必ず一現場につき一枚でご提出ください（複数現場の場合）。"]
[]
[]
[null,null,null,null,"☆　請求が複数現場ある場合は、各現場の請求書とともに、必ず請求総括表もご提出ください。"]